[Event "45th FIDE Olympiad 2024"]
[Site "Budapest"]
[Date "2024.09.15"]
[Round "5.43"]
[White "Adams, Michael"]
[Black "Sardana, Rishi"]
[Result "1-0"]
[ECO "B91"]
[WhiteElo "2661"]
[BlackElo "2477"]
[Annotator "TA"]
[PlyCount "81"]
[EventDate "2024.09.05"]
[EventType "team-tourn"]
[EventCountry "HUN"]
[SourceTitle "playchess.com"]
[Source "ChessBase"]
[SourceQuality "1"]
[WhiteTeam "England"]
[BlackTeam "Australia"]
[WhiteTeamCountry "ENG"]
[BlackTeamCountry "AUS"]
[TimeControl "40/5400+30:1800+30"]

{[%evp 19,80,0,14,17,22,14,14,11,0,0,34,13,21,8,38,29,56,53,75,77,95,88,97,63,79,95,69,104,163,168,172,158,233,219,427,431,505,526,612,379,368,248,306,304,266,264,252,225,275,273,460,391,857,860,816,736,29995,29996,29996,29997,29998,29999,29999]} 1. e4 {[%emt 0:00:04]} c5 {[%emt 0:00:07]} 2. Nf3 {[%emt 0:00:06][%cal Bg1f3,Bf3d4,Bd4b3,Bb3d2,Bd2f1,Bf1e3][%mdl 32]} d6 {[%emt 0:00:07]} 3. d4 {[%emt 0:00:08]} cxd4 {[%emt 0:00:06]} 4. Nxd4 {[%emt 0:00:06]} Nf6 {[%emt 0:00:09]} 5. Nc3 {[%emt 0:00:05]} a6 {[%emt 0:00:10]} 6. g3 {[%emt 0:00:07]} e5 {[%emt 0:00:16]} 7. Nb3 {[%emt 0:00:08]} Be7 {[%emt 0:00:06]} 8. Bg2 {[%emt 0:00:06]} O-O {[%emt 0:00:08]} 9. O-O {[%emt 0:00:09]} Be6 {[%emt 0:00:16]} 10. a4 {[%emt 0:01:49]} Nbd7 {[%emt 0:01:48]} 11. Re1 {[%emt 0:01:12]} Qc7 {[%emt 0:00:13]} 12. Nd2 {[%emt 0:05:27]} Qc5 {[%emt 0:02:28]} 13. Nf1 {[%emt 0:02:10] The position is equal.} Bd8 {[%emt 0:01:49][%cal Be7d8,Bd8b6,Bb6a7][%mdl 32]} 14. Ne3 {[%emt 0:15:44]} Bb6 {[%emt 0:19:18]} 15. Ncd5 {[%emt 0:03:41]} Bxd5 {[%emt 0:05:40]} 16. exd5 {[%emt 0:00:08]} e4 {[%emt 0:04:57]} 17. Bd2 {[%emt 0:02:01]} Ne5 {[%emt 0:02:11][%cal Ob6a7]} 18. a5 {[%emt 0:02:58]} Ba7 {[%emt 0:00:14][%cal Of6g4]} 19. Ra4 {[%emt 0:02:07] White leaves nothing to chance now.} Qb5 {[%emt 0:20:26]} 20. b3 {[%emt 0:04:05]} Qd7 {[%emt 0:00:35]} 21. Bxe4 {[%emt 0:09:06]} Nxe4 {[%emt 0:00:08]} (21... Bxe3 $2 22. Rxe3 (22. Bxe3 Rfe8 $18) 22... Nxe4 23. Raxe4 $18) 22. Rxe4 {[%emt 0:00:05]} f5 {[%emt 0:00:29]} 23. Ra4 {[%emt 0:02:35]} f4 {[%emt 0:06:55]} 24. gxf4 $18 {[%emt 0:04:50]} (24. Rxf4 $6 g5 25. Re4 (25. Rxf8+ Rxf8 26. Kg2 Qf7 $11) 25... Nf3+ 26. Kg2 Nxe1+ 27. Qxe1 (27. Bxe1 Rae8 $15) 27... Qf7 $14) 24... Ng6 {[%emt 0:18:44] [#]} 25. Ng2 $1 {[%emt 0:05:15]} (25. Qg4 Qxg4+ 26. Nxg4 h5 $17) 25... Qh3 {[%emt 0:04:15]} (25... Rf6 $16 {was worth a try.} 26. Be3 Bxe3 27. Rxe3 (27. fxe3 Raf8 $18) 27... Qf7) 26. Be3 {[%emt 0:07:41]} Rf5 $2 {[%emt 0:01:42]} (26... Nh4 27. Nxh4 Bxe3) 27. Bxa7 {[%emt 0:03:20]} Rh5 {[%emt 0:00:23] [#]} 28. Kf1 $1 {[%emt 0:01:21]} Rxa7 {[%emt 0:04:14]} (28... Rf5 29. Re3) 29. Re3 {[%emt 0:13:37]} Qf5 {[%emt 0:02:15]} 30. Qd3 {[%emt 0:02:05]} Qxd5 {[%emt 0:01:11]} 31. Qxd5+ {[%emt 0:05:36]} Rxd5 {[%emt 0:00:02]} 32. Re8+ {[%emt 0:01:17][%cal Be3e8,Be8c8,Bc8c7][%mdl 32]} Kf7 {[%emt 0:00:05]} 33. Rc8 {[%emt 0:00:10]} Rd1+ {[%emt 0:04:26]} 34. Ke2 {[%emt 0:00:34]} Rh1 $2 {[%emt 0:00:07]} (34... Rd5 35. Ne3 Rb5 36. Rc7+ Kf8) 35. Rc7+ {[%emt 0:01:03]} Kf6 $2 {[%emt 0:00:04]} (35... Kg8 36. f5 Ne5) 36. Rd4 {[%emt 0:01:30]} d5 {[%emt 0:00:53]} 37. Rxd5 {[%emt 0:01:25] Threatening mate with Rd6+.} Rxh2 {[%emt 0:01:20]} 38. Rd6+ {[%emt 0:00:59] White mates.} Kf5 {[%emt 0:00:05]} 39. Rc5+ {[%emt 0:00:09]} Kg4 {[%emt 0:00:16]} 40. Rg5+ {[%emt 0:00:21]} Kh3 {[%emt 0:00:09]} 41. Rg3# {[%emt 0:30:19] Weighted Error Value: White=0.22 (precise) /Black=0.62.  Mistake:       	---       	Black=5      Inaccurate:     	White=1     	Black=3      OK:         	White=11    	Black=10     Best:        	White=3     	Black=1      Strong:       	White=1     	---} 1-0

[Event "45th FIDE Olympiad 2024"]
[Site "Budapest"]
[Date "2024.09.15"]
[Round "5.43"]
[White "Amba, Oyon Marius Claude"]
[Black "Amewounou, Komlan Kouessan"]
[Result "1-0"]
[ECO "B07"]
[WhiteElo "1975"]
[BlackElo "1825"]
[PlyCount "113"]
[EventDate "2024.09.05"]
[EventType "team-tourn"]
[EventCountry "HUN"]
[WhiteTeam "Cameroon"]
[BlackTeam "Togo"]
[WhiteTeamCountry "CAM"]
[BlackTeamCountry "TOG"]
[TimeControl "40/5400+30:1800+30"]

1. e4 d6 2. Nf3 Nf6 3. d3 g6 4. Be2 Bg7 5. O-O Nbd7 6. Nc3 c5 7. h3 O-O 8. Be3 h6 9. Nh2 a6 10. f4 b5 11. Bf3 Rb8 12. Ne2 Bb7 13. Qd2 Kh7 14. g4 Ng8 15. Rab1 Nb6 16. Ng3 c4 17. f5 Qc7 18. Qf2 Na4 19. g5 Bxb2 20. Rxb2 Nxb2 21. Bd4 Na4 22. Bg4 e5 23. Be3 Nc5 24. Be2 Nd7 25. Ng4 d5 26. gxh6 Ngf6 27. Bg5 Nxg4 28. hxg4 Qb6 29. Qxb6 Nxb6 30. Be7 f6 31. fxg6+ Kxg6 32. g5 Kxg5 33. h7 Rf7 34. Rf5+ Kh6 35. Rh5+ Kg7 36. Bd6 Kh8 37. Bxb8 Rxh7 38. Rxh7+ Kxh7 39. Bc7 Na4 40. exd5 Bxd5 41. a3 Nc5 42. Bd6 cxd3 43. cxd3 Ne6 44. Ne4 Kg6 45. Bh5+ Kg7 46. Nc5 Nxc5 47. Bxc5 a5 48. Be8 b4 49. axb4 axb4 50. Bxb4 f5 51. Kf2 Kf6 52. Bd7 Be6 53. Bc6 Bb3 54. Bc3 Ke6 55. Bb7 e4 56. d4 f4 57. Bxe4 1-0

[Event "45th FIDE Olympiad 2024"]
[Site "Budapest"]
[Date "2024.09.15"]
[Round "5.44"]
[White "Zhao, Zong-Yuan"]
[Black "Jones, Gawain C B"]
[Result "0-1"]
[ECO "B07"]
[WhiteElo "2478"]
[BlackElo "2646"]
[Annotator "TA"]
[PlyCount "90"]
[EventDate "2024.09.05"]
[EventType "team-tourn"]
[EventCountry "HUN"]
[SourceTitle "playchess.com"]
[Source "ChessBase"]
[SourceQuality "1"]
[WhiteTeam "Australia"]
[BlackTeam "England"]
[WhiteTeamCountry "AUS"]
[BlackTeamCountry "ENG"]
[TimeControl "40/5400+30:1800+30"]

{[%evp 14,90,33,8,23,5,10,6,6,0,13,8,0,5,23,16,25,11,27,21,13,15,16,14,11,0,0,0,0,0,0,0,0,-50,-45,-46,-44,-125,-127,-130,-135,-130,-126,-149,-139,-152,-144,-226,-233,-218,-217,-288,-302,-367,-374,-318,-67,-286,-294,-304,-286,-285,-248,-291,-290,-266,-304,-281,-270,-697,-664,-862,-784,-29975,-29976,-29972,-373,-6331,-6070]} 1. d4 {[%emt 0:00:24]} Nf6 {[%emt 0:01:24]} 2. Nf3 {[%emt 0:00:10]} g6 {[%emt 0:00:29]} 3. Nbd2 {[%emt 0:00:05]} Bg7 {[%emt 0:01:40]} 4. e4 {[%emt 0:00:05]} O-O {[%emt 0:00:05]} 5. c3 {[%emt 0:00:07]} d6 {[%emt 0:01:57]} 6. Bd3 {[%emt 0:03:09]} Nc6 {[%emt 0:02:01]} 7. O-O {[%emt 0:00:10]} e5 {[%emt 0:00:05]} 8. Re1 {[%emt 0:01:27]} a5 {[%emt 0:01:05]} 9. dxe5 {[%emt 0:04:11]} Nxe5 {[%emt 0:01:57]} 10. Nxe5 {[%emt 0:00:27]} dxe5 {[%emt 0:00:08] The position is equal.} 11. Nc4 {[%emt 0:00:52]} Qe7 {[%emt 0:02:08]} 12. a4 {[%emt 0:03:53]} Rd8 {[%emt 0:01:27]} 13. Qc2 {[%emt 0:00:56]} b6 {[%emt 0:04:19]} 14. Bf1 {[%emt 0:10:13]} (14. Bg5 {seems wilder.} Be6 15. Rad1 h6 16. Bh4) 14... Bb7 {[%emt 0:03:08]} 15. f3 {[%emt 0:03:37]} Nh5 {[%emt 0:04:12]} 16. Be3 {[%emt 0:02:04]} Nf4 {[%emt 0:03:42]} 17. Red1 {[%emt 0:06:32]} h5 {[%emt 0:01:24]} 18. Rxd8+ {[%emt 0:03:03]} Rxd8 {[%emt 0:00:07]} 19. Rd1 {[%emt 0:00:06]} Rxd1 {[%emt 0:13:42]} 20. Qxd1 {[%emt 0:00:06]} Ne6 {[%emt 0:01:01]} 21. Na3 {[%emt 0:14:01]} h4 {[%emt 0:04:54]} 22. Nb5 {[%emt 0:02:58]} Bf6 {[%emt 0:06:15]} 23. Qd2 {[%emt 0:08:48]} (23. Na3 $11) 23... Bg5 $15 {[%emt 0:02:28]} 24. Bxg5 {[%emt 0:05:52]} Nxg5 {[%emt 0:00:06]} 25. Be2 {[%emt 0:06:52] [#]} (25. h3 $15) 25... h3 $1 $17 {[%emt 0:06:57]} 26. g3 {[%emt 0:14:40] [#]} Bxe4 $1 {[%emt 0:01:05][%mdl 512]} 27. Qe3 {[%emt 0:00:03]} (27. fxe4 Qc5+ 28. Nd4 (28. Kf1 $2 Nxe4 29. Qd8+ Kg7 $19) 28... Nxe4 (28... exd4 29. cxd4 Qe7 30. e5 $17)) 27... Bb7 {[%emt 0:07:17]} 28. f4 {[%emt 0:01:36]} Ne4 {[%emt 0:00:42]} 29. Bf3 {[%emt 0:01:34] [#]} c5 $1 {[%emt 0:06:57]} 30. Bg4 {[%emt 0:04:58]} (30. c4 $17) (30. fxe5 Qxe5) 30... exf4 $19 {[%emt 0:03:30]} 31. gxf4 {[%emt 0:00:01]} Qd8 {[%emt 0:00:30]} 32. Bf3 {[%emt 0:01:21] [#]} Nf6 {[%emt 0:01:05]} 33. f5 {[%emt 0:01:25]} (33. Na3 Bxf3) 33... Bxf3 {[%emt 0:07:12]} 34. Qxf3 {[%emt 0:00:01]} gxf5 {[%emt 0:00:07]} (34... g5 $19 {Threatens to win with ...g4.} 35. Qxh3 Qd1+ 36. Qf1 Qxa4) 35. Qxh3 $2 {[%emt 0:00:36][%mdl 4096] Endgame. KQN-KQN. This costs White the game.} (35. Qxf5 $15 Qd1+ 36. Kf2) 35... Ng4 {[%emt 0:01:33]} 36. Qf3 {[%emt 0:00:42] Against Qd1+} Qd2 {[%emt 0:00:14][%csl LRb2,LRh2]} 37. h3 {[%emt 0:00:34]} Qe1+ {[%emt 0:03:31]} 38. Qf1 {[%emt 0:01:07]} Qe3+ {[%emt 0:00:23]} 39. Kh1 {[%emt 0:00:37]} Nf2+ {[%emt 0:00:24]} ({Worse is} 39... Qe4+ 40. Qg2 $15) 40. Kh2 {[%emt 0:00:35]} Kf8 {[%emt 0:04:34]} 41. Qg2 {[%emt 0:12:19]} (41. Nd6 Qe5+ 42. Kg2 Nxh3 43. Kxh3 Qe3+ (43... Qxd6 $2 44. Qf3 $19) 44. Kg2 Qd2+ 45. Kg1 Qxd6 46. Qh3) 41... Ne4 {[%emt 0:02:34] Strongly threatening ...f4.} 42. Na3 {[%emt 0:00:28]} Nd2 {[%emt 0:12:52] ( -> ...Nf3+)} 43. Nc2 {[%emt 0:05:03]} Nf3+ {[%emt 0:00:33]} 44. Kg3 {[%emt 0:00:02]} f4+ {[%emt 0:00:07]} 45. Kg4 {[%emt 0:00:01]} Qe4 {[%emt 0:00:18] Weighted Error Value: White=0.54/Black=0.14 (very precise) .  Loses game:     	White=1     	---        Missed win:     	---       	Black=1      Mistake:       	White=4     	---        Inaccurate:     	White=1     	---        OK:         	White=8     	Black=17     Best:        	White=4     	Black=2      Strong:       	---       	Black=1      Brilliant:      	---       	Black=1} 0-1

[Event "45th FIDE Olympiad 2024"]
[Site "Budapest"]
[Date "2024.09.15"]
[Round "5.44"]
[White "Fumey, Enyonam Sewa"]
[Black "Makem, Pierre"]
[Result "1/2-1/2"]
[ECO "C01"]
[WhiteElo "1845"]
[BlackElo "1860"]
[PlyCount "103"]
[EventDate "2024.09.05"]
[EventType "team-tourn"]
[EventCountry "HUN"]
[WhiteTeam "Togo"]
[BlackTeam "Cameroon"]
[WhiteTeamCountry "TOG"]
[BlackTeamCountry "CAM"]
[TimeControl "40/5400+30:1800+30"]

1. e4 e6 2. Nf3 d5 3. exd5 exd5 4. d4 Bd6 5. Bd3 Ne7 6. Nc3 c6 7. Bg5 f6 8. Bd2 b5 9. Ne2 Qc7 10. c3 Bg4 11. Ng3 Nd7 12. Qe2 Nf8 13. Nf5 Bxf5 14. Bxf5 Kf7 15. Bc2 Nfg6 16. g3 Rhe8 17. O-O h5 18. Rae1 Qd7 19. Kg2 h4 20. Kh1 Rh8 21. Rg1 c5 22. dxc5 Bxc5 23. gxh4 Nxh4 24. Nxh4 Rxh4 25. Rg2 Rah8 26. Reg1 g5 27. Rf1 Bd6 28. f4 Qc7 29. Be1 Rxf4 30. Bf2 Nf5 31. Bxf5 Rxf5 32. Re1 Re5 33. Qxb5 Rxe1+ 34. Bxe1 Bxh2 35. Qxd5+ Kg6 36. Qe4+ Kg7 37. Re2 Bg3+ 38. Kg1 Bxe1 39. Rxe1 Qg3+ 40. Kf1 Rf8 41. Qb7+ Rf7 42. Re7 Qf4+ 43. Kg2 Qd2+ 44. Kf3 Qd1+ 45. Kf2 Qc2+ 46. Kf3 Qd3+ 47. Kf2 Qf5+ 48. Kg2 Qc2+ 49. Kf3 Qd1+ 50. Kf2 Qd2+ 51. Kf3 Qd1+ 52. Kf2 1/2-1/2

[Event "45th FIDE Olympiad 2024"]
[Site "Budapest"]
[Date "2024.09.15"]
[Round "5.45"]
[White "Vachier-Lagrave, Maxime"]
[Black "Bogner, Sebastian"]
[Result "1-0"]
[ECO "C48"]
[WhiteElo "2731"]
[BlackElo "2545"]
[Annotator "TA"]
[PlyCount "83"]
[EventDate "2024.09.05"]
[EventType "team-tourn"]
[EventCountry "HUN"]
[SourceTitle "playchess.com"]
[Source "ChessBase"]
[SourceQuality "1"]
[WhiteTeam "France"]
[BlackTeam "Switzerland"]
[WhiteTeamCountry "FRA"]
[BlackTeamCountry "SUI"]
[TimeControl "40/5400+30:1800+30"]

{[%evp 15,83,10,10,0,0,0,6,4,16,0,0,0,0,0,0,0,27,27,32,27,29,35,58,50,69,68,75,64,51,50,54,52,62,70,61,55,74,72,142,151,145,140,130,109,122,117,125,28,29,32,125,0,128,135,133,145,361,361,446,499,438,370,646,699,697,699,1207,1214,1983,1873]} 1. e4 {[%emt 0:00:22]} e5 {[%emt 0:00:14]} 2. Nf3 {[%emt 0:00:04]} Nf6 {[%emt 0:00:04]} 3. Nc3 {[%emt 0:00:02]} Nc6 {[%emt 0:00:06]} 4. Bb5 {[%emt 0:00:03]} Nd4 {[%emt 0:00:17]} 5. O-O {[%emt 0:00:06]} Nxb5 {[%emt 0:13:03]} 6. Nxb5 {[%emt 0:01:23]} c6 {[%emt 0:00:25]} 7. Nc3 {[%emt 0:00:06]} d6 {[%emt 0:00:06]} 8. d4 {[%emt 0:00:03]} Qc7 {[%emt 0:00:22]} 9. Bg5 {[%emt 0:00:24]} Be7 {[%emt 0:00:07]} 10. a4 {[%emt 0:00:07]} O-O {[%emt 0:06:01]} 11. h3 {[%emt 0:06:36] The position is equal.} Re8 {[%emt 0:00:23]} 12. Bxf6 {[%emt 0:00:06]} Bxf6 {[%emt 0:00:19]} 13. d5 {[%emt 0:00:05]} Bd7 {[%emt 0:17:59]} 14. Qd3 {[%emt 0:01:33]} Rac8 {[%emt 0:03:25]} 15. Rfd1 {[%emt 0:06:49]} Be7 {[%emt 0:06:32]} 16. dxc6 {[%emt 0:04:18]} Bxc6 {[%emt 0:04:09]} 17. Nd2 {[%emt 0:05:30][%cal Bf3d2,Bd2f1,Bf1e3,Be3d5][%mdl 32]} a6 {[%emt 0:02:00]} 18. Nf1 {[%emt 0:03:27]} b5 {[%emt 0:05:55]} 19. axb5 {[%emt 0:01:56]} axb5 {[%emt 0:00:12]} 20. Ne3 {[%emt 0:02:37]} Qb7 {[%emt 0:03:00]} 21. b4 {[%emt 0:01:12]} g6 {[%emt 0:01:58]} 22. Ned5 {[%emt 0:05:45]} Bg5 {[%emt 0:07:13]} 23. Ra5 {[%emt 0:03:17]} Rb8 {[%emt 0:03:07]} 24. Rda1 {[%emt 0:01:27] [#] Threatens to win with Ra7.} Qd7 {[%emt 0:02:41]} 25. Qg3 {[%emt 0:03:12]} Bd8 {[%emt 0:03:09]} 26. Ra7 {[%emt 0:02:13]} Qe6 {[%emt 0:04:07]} (26... Rb7 $142 27. R7a6 h5) 27. Qd3 $16 {[%emt 0:02:51] White has more active pieces.} Rf8 {[%emt 0:01:35]} 28. R1a6 {[%emt 0:02:05]} Qc8 {[%emt 0:08:11]} 29. g3 {[%emt 0:03:50]} Kg7 {[%emt 0:04:21]} 30. h4 $36 {[%emt 0:01:31][%mdl 2048] Black is under strong pressure.} Rb7 {[%emt 0:00:49] [#]} 31. h5 {[%emt 0:06:43]} Rxa7 $11 {[%emt 0:01:56]} 32. Rxa7 {[%emt 0:00:08]} Qg4 {[%emt 0:00:39]} (32... Qb8 $14 33. Ra1 Qb7) 33. Ra6 {[%emt 0:07:41]} (33. Nc7 $16 Bxc7 34. h6+ (34. Rxc7 Ra8 $16) 34... Kxh6 35. Rxc7) 33... Bxd5 {[%emt 0:00:52]} (33... Qc8 $11 34. Ra7 Qb8) 34. Qxd5 $16 {[%emt 0:02:21]} Qxh5 {[%emt 0:00:16]} 35. Nxb5 {[%emt 0:00:41]} (35. Qxd6 $6 Qg5 $14) 35... Qe2 {[%emt 0:01:14] This move loses the game for Black.} (35... Qg5 $16) 36. Rxd6 $18 {[%emt 0:01:22]} Qe1+ {[%emt 0:01:01]} 37. Kg2 {[%emt 0:00:06]} Qxb4 {[%emt 0:00:02]} 38. Rd7 {[%emt 0:01:11]} (38. Rxd8 Rxd8 39. Qxd8 Qxb5 $11) (38. Qxe5+ Kg8 39. Qd5 Be7 $18) 38... Be7 {[%emt 0:00:55] Prevents Nd6} (38... Qa4 39. c4 (39. Rxd8 Rxd8 40. Qxd8 Qxb5 $14) (39. Qxe5+ Kg8 $18) 39... Bb6) 39. Qxe5+ {[%emt 0:00:10] White is clearly winning.} Bf6 {[%emt 0:00:02]} 40. Qd5 {[%emt 0:00:08] Nd6 would now be deadly. Black is weak on the light squares} Be7 {[%emt 0:00:39]} 41. Nd4 {[%emt 0:30:43]} Re8 {[%emt 0:16:14]} 42. Nc6 {[%emt 0:00:00] Weighted Error Value: White=0.16 (very precise) /Black=0.42.  Loses game:     	---       	Black=1      Mistake:       	White=2     	Black=4      Inaccurate:     	---       	Black=1      OK:         	White=12    	Black=11     Best:        	White=4     	Black=2} 1-0

[Event "45th FIDE Olympiad 2024"]
[Site "Budapest"]
[Date "2024.09.15"]
[Round "5.45"]
[White "Salim Mohammed, Salim Al Amri"]
[Black "Thabang, Mphane"]
[Result "1-0"]
[ECO "B04"]
[WhiteElo "1926"]
[BlackElo "1799"]
[PlyCount "123"]
[EventDate "2024.09.05"]
[EventType "team-tourn"]
[EventCountry "HUN"]
[WhiteTeam "Oman"]
[BlackTeam "Lesotho"]
[WhiteTeamCountry "OMN"]
[BlackTeamCountry "LES"]
[TimeControl "40/5400+30:1800+30"]

1. e4 Nf6 2. e5 Nd5 3. d4 d6 4. Nf3 Nc6 5. Be2 Bf5 6. O-O dxe5 7. Nxe5 Nxe5 8. dxe5 Nb4 9. Na3 e6 10. Bd2 Nc6 11. Bb5 Bxa3 12. Bxc6+ bxc6 13. bxa3 Qd5 14. Bb4 a5 15. Bc3 Qxd1 16. Rfxd1 Bxc2 17. Rd4 O-O 18. Rc1 Rfb8 19. h4 Rb1 20. Rxb1 Bxb1 21. Bxa5 Bxa2 22. Bxc7 f6 23. h5 Bd5 24. Bd6 fxe5 25. Bxe5 Rxa3 26. h6 gxh6 27. Rg4+ Kf7 28. Rg7+ Ke8 29. Rxh7 c5 30. Rxh6 c4 31. Rh7 Be4 32. Rc7 Bd3 33. Bf6 Ra5 34. Re7+ Kf8 35. Rxe6 Kf7 36. Rc6 Rb5 37. f3 Kg6 38. Kf2 Rb1 39. g4 Rf1+ 40. Ke3 Re1+ 41. Kf4 Kf7 42. Kg5 Re6 43. Rc7+ Ke8 44. f4 Rd6 45. Be5 Rd7 46. Rc5 Kf7 47. f5 Be2 48. Kf4 Rd1 49. Rc7+ Ke8 50. Rg7 Rf1+ 51. Ke4 Bd3+ 52. Kd5 Bxf5 53. gxf5 Rxf5 54. Ke6 Rf3 55. Re7+ Kf8 56. Rh7 Ke8 57. Rc7 Rd3 58. Rc8+ Rd8 59. Rxc4 Rd1 60. Rb4 Rd3 61. Bd4 Kd8 62. Rc4 1-0

[Event "45th FIDE Olympiad 2024"]
[Site "Budapest"]
[Date "2024.09.15"]
[Round "5.46"]
[White "Pelletier, Yannick"]
[Black "Bacrot, Etienne"]
[Result "1/2-1/2"]
[ECO "A20"]
[WhiteElo "2526"]
[BlackElo "2665"]
[Annotator "TA"]
[PlyCount "62"]
[EventDate "2024.09.05"]
[EventType "team-tourn"]
[EventCountry "HUN"]
[SourceTitle "playchess.com"]
[Source "ChessBase"]
[SourceQuality "1"]
[WhiteTeam "Switzerland"]
[BlackTeam "France"]
[WhiteTeamCountry "SUI"]
[BlackTeamCountry "FRA"]
[TimeControl "40/5400+30:1800+30"]

{[%evp 9,62,16,11,21,7,9,14,10,28,24,20,10,10,28,12,24,4,16,52,29,37,27,21,0,0,0,2,0,0,0,-6,0,0,-12,0,0,0,-14,0,0,0,-35,-23,-19,0,-41,-47,-53,-8,-29,-20,-20,12,15,33]} 1. c4 {[%emt 0:00:04]} e5 {[%emt 0:00:16]} 2. g3 {[%emt 0:00:32]} Nf6 {[%emt 0:03:44]} 3. Bg2 {[%emt 0:00:25]} c6 {[%emt 0:00:35]} 4. Nf3 {[%emt 0:00:35]} e4 {[%emt 0:00:07]} 5. Nd4 {[%emt 0:00:06][%cal Bf3d4,Bd4b3,Bb3d2,Bd2e4][%mdl 32]} Qb6 {[%emt 0:03:42]} 6. Nb3 {[%emt 0:00:36]} a5 {[%emt 0:01:54] [#] And now ...a4 would win.} 7. d3 {[%emt 0:01:05]} a4 {[%emt 0:00:21]} 8. N3d2 {[%emt 0:00:22]} Bc5 {[%emt 0:12:26]} 9. O-O {[%emt 0:01:49]} e3 {[%emt 0:01:32]} 10. fxe3 {[%emt 0:00:32]} Bxe3+ {[%emt 0:00:49]} 11. Kh1 {[%emt 0:00:12][%cal Of1f6]} Ng4 {[%emt 0:14:44]} 12. Ne4 {[%emt 0:00:55] [#] Strongly threatening Nd6+.} O-O {[%emt 0:00:04]} 13. Nbc3 {[%emt 0:01:14]} d5 {[%emt 0:33:40]} 14. cxd5 {[%emt 0:02:41]} (14. Nxa4 $2 Rxa4 15. Nd6 Ra8 $19) 14... Bxc1 {[%emt 0:00:02]} 15. Qxc1 {[%emt 0:00:29]} ({Much worse is} 15. Rxc1 Ne3 16. Qd2 (16. Nxa4 $2 Qa7 $19) 16... cxd5 $17 (16... Nxf1 17. Rxf1 a3 18. b3 $15)) 15... Ne3 {[%emt 0:00:04]} 16. Rf3 {[%emt 0:05:24]} Nxd5 {[%emt 0:00:41]} 17. Qd2 {[%emt 0:09:38]} a3 $132 {[%emt 0:06:53][%mdl 2048] Black is not holding back} 18. Rb1 {[%emt 0:19:52]} Nxc3 {[%emt 0:01:07]} 19. Nxc3 {[%emt 0:15:39]} axb2 {[%emt 0:01:10]} 20. Rxb2 {[%emt 0:00:14]} Qa5 {[%emt 0:00:59]} 21. Rf4 {[%emt 0:03:17] Threatens to win with Ra4.} Qa3 {[%emt 0:01:07]} 22. Rfb4 {[%emt 0:09:55]} Na6 {[%emt 0:01:56]} 23. Rb6 {[%emt 0:06:24]} (23. Nb1 $5 Qa5 $8 24. Rb6 $11) 23... Qe7 {[%emt 0:02:45]} 24. d4 {[%emt 0:01:57]} Rd8 {[%emt 0:00:20]} 25. e4 {[%emt 0:02:04]} Nc5 {[%emt 0:01:01]} 26. R6b4 {[%emt 0:03:34]} Ra3 {[%emt 0:06:50]} 27. Qc2 {[%emt 0:06:07]} Na6 {[%emt 0:02:09]} 28. Rc4 {[%emt 0:06:55]} Be6 {[%emt 0:02:06]} 29. Ra4 {[%emt 0:00:03]} Rxa4 {[%emt 0:00:28]} 30. Qxa4 {[%emt 0:00:05]} c5 {[%emt 0:00:47]} 31. d5 {[%emt 0:01:54]} Bc8 {[%emt 0:00:09] Weighted Error Value: White=0.07 (flawless) /Black=0.08 (flawless) .  Inaccurate:     	White=2     	Black=3      OK:         	White=12    	Black=13     Best:        	White=1     	Black=1} 1/2-1/2

[Event "45th FIDE Olympiad 2024"]
[Site "Budapest"]
[Date "2024.09.15"]
[Round "5.46"]
[White "Tsephe, Lebajoa"]
[Black "Al Maashani, Abdullah"]
[Result "1/2-1/2"]
[ECO "D02"]
[WhiteElo "1900"]
[BlackElo "1893"]
[PlyCount "96"]
[EventDate "2024.09.05"]
[EventType "team-tourn"]
[EventCountry "HUN"]
[WhiteTeam "Lesotho"]
[BlackTeam "Oman"]
[WhiteTeamCountry "LES"]
[BlackTeamCountry "OMN"]
[TimeControl "40/5400+30:1800+30"]

1. Nf3 d5 2. d4 Nf6 3. g3 Bg4 4. Bg2 e6 5. c4 c6 6. Qc2 Bd6 7. O-O O-O 8. Bg5 h6 9. Bxf6 Qxf6 10. Nbd2 Bxf3 11. Nxf3 Na6 12. c5 Bc7 13. b4 e5 14. dxe5 Bxe5 15. Rab1 Nc7 16. a4 a6 17. Rb3 Rfe8 18. Rd1 Re7 19. Nh4 g6 20. Qc1 Qg7 21. Nf3 Bf6 22. e3 Ne6 23. Bh3 Ng5 24. Bg2 Ne4 25. Nd4 Rae8 26. b5 axb5 27. axb5 Bxd4 28. Rxd4 Qf6 29. Qc2 Ra8 30. Bxe4 dxe4 31. Rxe4 Rxe4 32. Qxe4 Ra2 33. f4 cxb5 34. Qe5 Qc6 35. e4 Rc2 36. Rd3 Qxc5+ 37. Qxc5 Rxc5 38. Rd7 b6 39. Rd6 Kf8 40. Rxb6 Ke7 41. Rb7+ Ke6 42. Kf2 Rc2+ 43. Ke3 Rb2 44. Kd4 Rb4+ 45. Kd3 Rb2 46. Kd4 Rb4+ 47. Kd3 Rb2 48. Kd4 Rb4+ 1/2-1/2